bitfinex/quotes_BTCUSD_20251124
["timestamp","ask_amount","ask_price","bid_price","bid_amount"]
[1763954291906,0.0004,87670.0,87668.0,0.01012237]
[1763954292269,0.001994,87669.0,87668.0,0.01012237]
[1763954293099,0.001994,87669.0,87668.0,0.01112237]
[1763954293297,0.001994,87669.0,87668.0,0.01012237]
[1763954293496,0.001994,87669.0,87668.0,0.23825578]
[1763954293940,0.001994,87669.0,87668.0,0.24923578]
[1763954294268,0.001994,87669.0,87668.0,0.23925578]
[1763954294469,0.001994,87669.0,87668.0,0.24923578]
[1763954294671,0.001994,87669.0,87668.0,0.23925578]
[1763954295155,0.001994,87669.0,87668.0,0.02110237]
[1763954295357,0.001994,87669.0,87668.0,0.23925578]
[1763954295560,0.001994,87669.0,87668.0,0.01112237]
[1763954295766,0.001994,87669.0,87668.0,0.02010237]
[1763954295971,0.02914,87711.0,87668.0,0.02010237]
[1763954295972,0.323,87699.0,87668.0,0.03150904]
[1763954296177,0.323,87699.0,87690.0,0.09122371]
[1763954297000,0.01618589,87698.0,87680.0,0.01999998]
[1763954297205,0.70556702,87690.0,87684.0,0.09122371]
[1763954298056,0.323,87689.0,87684.0,0.09122371]
[1763954298741,0.323,87689.0,87684.0,0.001]
[1763954299003,0.01965,87685.0,87680.0,0.01999998]
[1763954299186,0.03377,87681.0,87670.0,0.01999998]
[1763954299389,0.323,87677.0,87670.0,0.00999999]
[1763954299750,0.323,87677.0,87670.0,0.01999998]
[1763954300296,0.01412,87671.0,87656.0,0.00728]
[1763954300495,0.70556702,87666.0,87660.0,0.00999999]
[1763954301241,0.70556702,87666.0,87660.0,0.01999998]
[1763954301440,0.323,87669.0,87661.0,0.02281516]
[1763954301883,0.323,87669.0,87660.0,0.00999999]
[1763954302086,0.323,87669.0,87660.0,0.01999998]
[1763954302467,0.323,87669.0,87660.0,0.00999999]
[1763954303479,0.323,87669.0,87660.0,0.01099999]
[1763954303692,0.323,87669.0,87660.0,0.02099998]
[1763954303911,0.01412,87661.0,87660.0,0.001]
[1763954304125,0.323,87669.0,87660.0,0.001]
[1763954304330,0.01412,87667.0,87660.0,0.001]
[1763954305013,0.01412,87667.0,87651.0,0.09122371]
[1763954305254,0.323,87660.0,87652.0,0.0255624]
[1763954305450,0.323,87679.0,87670.0,0.01999998]
[1763954305643,0.32311787,87679.0,87670.0,0.01999998]
[1763954305887,0.00011787,87679.0,87671.0,0.02281256]
[1763954306092,0.00011787,87679.0,87672.0,0.01454433]
[1763954306301,0.00011787,87679.0,87673.0,0.02074826]
[1763954306724,0.00011787,87679.0,87672.0,0.01454433]
[1763954307341,0.00024914,87677.0,87673.0,0.02281204]
[1763954307547,0.00024914,87677.0,87672.0,0.01454433]
[1763954307749,0.00024914,87677.0,87673.0,0.03611684]
[1763954308167,0.00024914,87677.0,87673.0,0.02842372]
[1763954308302,0.00024914,87677.0,87673.0,0.0133048]
[1763954308902,0.01412,87674.0,87660.0,0.00999999]
[1763954309083,0.01412,87674.0,87660.0,0.01999998]
[1763954309084,0.323,87669.0,87660.0,0.01999998]
[1763954309283,0.323,87669.0,87665.0,0.09122371]
[1763954309486,0.323,87669.0,87660.0,0.00999999]
[1763954309859,0.323,87669.0,87660.0,0.01999998]
[1763954310229,0.323,87669.0,87660.0,0.01099999]
[1763954310469,0.323,87669.0,87660.0,0.03307601]
[1763954310838,0.323,87669.0,87660.0,0.02307602]
[1763954311038,0.02130919,87668.0,87661.0,0.02281516]
[1763954311242,0.00024914,87677.0,87665.0,0.001]
[1763954311510,0.02131306,87676.0,87670.0,0.00999999]
[1763954311727,0.02131306,87675.0,87670.0,0.00999999]
[1763954311939,0.18310201,87679.0,87670.0,0.01999998]
[1763954312847,0.03377,87671.0,87670.0,0.00999999]
[1763954313030,0.03377,87671.0,87670.0,0.01099999]
[1763954314176,0.01412,87671.0,87670.0,0.00999999]
[1763954314380,0.323,87676.0,87670.0,0.00999999]
[1763954314567,0.323,87676.0,87670.0,0.01999998]
[1763954316158,0.01855,87671.0,87670.0,0.01999998]
[1763954316458,0.35,87676.0,87670.0,0.01999998]
[1763954316978,0.323,87676.0,87670.0,0.01999998]
[1763954318400,0.323,87679.0,87671.0,0.09122371]
[1763954318624,0.323,87679.0,87672.0,0.03393467]
[1763954318820,0.70556702,87680.0,87672.0,0.03393467]
[1763954319198,0.323,87689.0,87680.0,0.00999999]
[1763954319396,0.70556702,87690.0,87680.0,0.00999999]
[1763954319397,0.73256702,87690.0,87680.0,0.01999998]
[1763954319798,0.323,87689.0,87680.0,0.01999998]
[1763954322361,0.324,87689.0,87680.0,0.01999998]
[1763954323688,0.324,87689.0,87670.0,0.01999998]
[1763954323689,0.03335,87681.0,87670.0,0.01999998]
[1763954323829,0.70556702,87680.0,87670.0,0.01011786]
[1763954324205,0.02136885,87679.0,87670.0,0.02011785]
[1763954324427,0.02136885,87678.0,87670.0,0.02011785]
[1763954324648,0.70556702,87680.0,87670.0,0.02011785]
[1763954324649,0.70556702,87680.0,87671.0,0.09122371]
[1763954324868,0.70556702,87680.0,87671.0,0.01113416]
[1763954324869,0.02136869,87679.0,87671.0,0.01113416]
[1763954325102,0.02136869,87678.0,87670.0,0.01011786]
[1763954325310,0.70556702,87680.0,87670.0,0.01011786]
[1763954325567,0.02137207,87679.0,87670.0,0.01011786]
[1763954325754,0.02137207,87678.0,87670.0,0.02011785]
[1763954325985,0.02137213,87677.0,87670.0,0.01011786]
[1763954326288,0.0182,87671.0,87670.0,0.00011787]
[1763954326634,0.03957262,87671.0,87670.0,0.00011787]
[1763954327046,0.02137262,87671.0,87670.0,0.00011787]
[1763954327269,0.323,87677.0,87670.0,0.01011786]
[1763954327469,0.323,87675.0,87670.0,0.01011786]
[1763954327670,0.323,87675.0,87670.0,0.02011785]
[1763954328032,0.0148,87695.0,87680.0,0.01999998]
[1763954328390,0.0148,87695.0,87680.0,0.00999999]
[1763954328391,0.0213824,87684.0,87680.0,0.00999999]
[1763954328549,0.0213824,87683.0,87680.0,0.00999999]
[1763954328731,0.0213824,87682.0,87680.0,0.00999999]
[1763954329074,0.0213824,87681.0,87680.0,0.00999999]
[1763954329285,0.323,87689.0,87680.0,0.01999998]
[1763954329793,0.01459,87681.0,87671.0,0.09122371]
[1763954329995,0.0213889,87680.0,87672.0,0.01113416]
[1763954330217,0.0213889,87679.0,87670.0,0.01011786]
[1763954330421,0.72015702,87681.0,87670.0,0.02011785]
[1763954330603,0.02138909,87680.0,87670.0,0.01011786]
[1763954330821,0.72015702,87681.0,87670.0,0.01011786]
[1763954331025,0.02138909,87680.0,87670.0,0.01011786]
[1763954331233,0.70556702,87680.0,87671.0,0.09122371]
[1763954331375,0.70556702,87680.0,87672.0,0.03394646]
[1763954331955,0.0002491,87685.0,87672.0,0.03394646]
[1763954332161,0.0002491,87685.0,87680.0,0.01999998]
[1763954335386,0.0002491,87685.0,87680.0,0.02997998]
[1763954335581,0.0002491,87685.0,87680.0,0.01999998]
[1763954335780,0.0002491,87685.0,87682.0,0.00998]
[1763954335986,0.0002491,87685.0,87681.0,0.0270929]
[1763954336979,0.0002491,87685.0,87682.0,0.002]
[1763954337222,0.0002491,87685.0,87682.0,0.001]
[1763954337598,0.0002491,87685.0,87681.0,0.0270929]
[1763954337768,0.0002491,87685.0,87684.0,0.00998]
[1763954339280,0.0002491,87685.0,87684.0,0.01098]
[1763954339707,0.0002491,87685.0,87684.0,0.03378917]
[1763954340124,0.0002491,87685.0,87684.0,0.03478917]
[1763954340775,0.323,87719.0,87710.0,0.01999998]
[1763954340990,0.0004,87740.0,87684.0,0.26430484]
[1763954340991,1.557561,87733.0,87720.0,0.01999998]
[1763954341193,0.88522735,87740.0,87730.0,0.01999998]
[1763954341194,1.557561,87736.0,87730.0,0.01999998]
[1763954341396,0.0004,87740.0,87730.0,0.01999998]
[1763954342019,0.23925218,87774.0,87730.0,0.01999998]
[1763954342020,0.5,87796.0,87750.0,0.00999999]
[1763954342217,0.01459,87788.0,87760.0,0.01999998]
[1763954342424,0.00031791,87770.0,87761.0,0.00998]
[1763954342627,0.0004,87790.0,87770.0,0.01999998]
[1763954342839,0.0004,87790.0,87780.0,0.01999998]
[1763954342988,0.0004,87790.0,87780.0,0.02011789]
[1763954343247,0.88522735,87790.0,87780.0,0.02011789]
[1763954343680,0.88522735,87790.0,87780.0,0.0101179]
[1763954343681,0.0004,87790.0,87780.0,0.0101179]
[1763954343897,0.0004,87790.0,87780.0,0.02011789]
[1763954344302,0.88522735,87790.0,87780.0,0.02011789]
[1763954344724,0.323,87789.0,87780.0,0.02011789]
[1763954345858,0.323,87789.0,87781.0,0.09122371]
[1763954346235,0.88522735,87790.0,87782.0,0.01113416]
[1763954346236,0.3234,87790.0,87782.0,0.01113416]
[1763954346358,0.01458,87781.0,87780.0,0.00011791]
[1763954346558,0.00298583,87781.0,87780.0,0.00011791]
[1763954347453,0.04814583,87781.0,87780.0,0.00011791]
[1763954347853,1.92870683,87781.0,87780.0,0.00011791]
[1763954348238,0.01139302,87773.0,87760.0,0.00999999]
[1763954348503,0.88482735,87770.0,87761.0,0.09122371]
[1763954348695,0.88482735,87770.0,87762.0,0.01112237]
[1763954348934,0.00011771,87773.0,87762.0,0.01112237]
[1763954349448,0.88482735,87772.0,87762.0,0.01112237]
[1763954349663,0.00211771,87773.0,87762.0,0.01112237]
[1763954349664,0.00011771,87773.0,87762.0,0.01112237]
[1763954349839,0.00011771,87773.0,87763.0,0.01223461]
[1763954350230,0.00011771,87773.0,87765.0,0.00998]
[1763954351016,0.001,87770.0,87763.0,0.01223461]
[1763954351356,0.00011771,87773.0,87763.0,0.01223461]
[1763954351574,0.00011771,87773.0,87772.0,0.00998]
[1763954351914,0.00011771,87773.0,87764.0,0.01307383]
[1763954352120,0.00011771,87773.0,87765.0,0.001]
[1763954352316,0.00011771,87773.0,87768.0,0.00998]
[1763954352697,0.00011771,87773.0,87770.0,0.00998]
[1763954352921,0.00011771,87773.0,87772.0,0.002]
[1763954353409,0.00011771,87773.0,87772.0,0.001]
[1763954354129,0.00011771,87773.0,87768.0,0.26163984]
[1763954354487,0.88502735,87800.0,87768.0,0.26163984]
[1763954354488,0.88502735,87800.0,87790.0,0.00999999]
[1763954354701,0.8851451,87800.0,87790.0,0.00999999]
[1763954355119,0.00329648,87791.0,87790.0,0.00999999]
[1763954355698,0.00329648,87791.0,87780.0,0.00999999]
[1763954355925,0.01138731,87817.0,87780.0,0.00999999]
[1763954355926,0.5,87849.0,87797.0,0.22779666]
[1763954356136,0.5,87849.0,87790.0,0.11122369]
[1763954356137,0.01497267,87839.0,87830.0,0.01999998]
[1763954356545,0.33797267,87839.0,87830.0,0.01999998]
[1763954356894,0.01458,87838.0,87830.0,0.01999998]
[1763954357273,0.00039267,87839.0,87830.0,0.01999998]
[1763954357472,0.01458,87838.0,87830.0,0.01999998]
[1763954358097,0.32339267,87839.0,87831.0,0.09122371]
[1763954358297,0.32339267,87839.0,87832.0,0.01112237]
[1763954358420,0.01874,87832.0,87830.0,0.00999999]
[1763954358808,0.01874,87832.0,87820.0,0.00999999]
[1763954358809,0.01874,87831.0,87820.0,0.00999999]
[1763954358992,0.33438602,87827.0,87820.0,0.00999999]
[1763954359185,0.01874,87821.0,87810.0,0.00999999]
[1763954359384,0.323,87813.0,87810.0,0.01012237]
[1763954359805,0.88482735,87820.0,87810.0,0.01012237]
[1763954360050,0.01458,87838.0,87830.0,0.01999998]
[1763954360253,1.583981,87837.0,87830.0,0.01999998]
[1763954360455,0.01874,87831.0,87830.0,0.00999999]
[1763954360657,0.01874,87831.0,87820.0,0.01999998]
[1763954361016,0.323,87829.0,87820.0,0.01999998]
[1763954361420,0.323,87829.0,87810.0,0.01012237]
[1763954361421,0.323,87829.0,87810.0,0.01112237]
[1763954361628,0.004228,87821.0,87820.0,0.00999999]
[1763954362408,0.004228,87821.0,87810.0,0.03012235]
[1763954362586,0.004228,87821.0,87804.0,0.09122371]
[1763954362587,1.557561,87837.0,87830.0,0.01999998]
[1763954363011,0.32339267,87839.0,87830.0,0.01999998]
[1763954363321,0.00039267,87839.0,87830.0,0.01999998]
[1763954363599,0.32339267,87839.0,87830.0,0.01999998]
[1763954363990,0.33797267,87839.0,87830.0,0.01999998]
[1763954365458,0.01874,87831.0,87830.0,0.01999998]
[1763954365658,0.33438563,87830.0,87820.0,0.01999998]
[1763954365862,0.33438563,87830.0,87820.0,0.00999999]
[1763954365863,0.01874,87821.0,87820.0,0.00999999]
[1763954366272,0.01874,87821.0,87811.0,0.01213461]
[1763954366273,0.04516,87821.0,87811.0,0.01213461]
[1763954366468,0.01874,87812.0,87800.0,0.00999999]
[1763954366859,0.04578942,87819.0,87810.0,0.00999999]
[1763954366975,0.02642,87818.0,87810.0,0.00999999]
[1763954367174,0.03780718,87818.0,87810.0,0.01999998]
[1763954367412,0.02642,87818.0,87810.0,0.00999999]
[1763954367616,0.02642,87818.0,87810.0,0.01999998]
[1763954367820,0.00391756,87811.0,87810.0,0.01999998]
[1763954368015,0.00391756,87811.0,87800.0,0.01999998]
[1763954368276,0.001,87818.0,87810.0,0.00999999]
[1763954368491,0.88482735,87820.0,87810.0,0.03012235]
[1763954368725,0.00391756,87811.0,87810.0,0.02012236]
[1763954368899,0.00391756,87811.0,87810.0,0.01012237]
[1763954371493,0.00391756,87811.0,87810.0,0.03289881]
[1763954371972,0.88482735,87850.0,87840.0,0.01999998]
[1763954372181,0.02124139,87849.0,87840.0,0.01999998]
[1763954372413,0.00093177,87841.0,87840.0,0.01999998]
[1763954372623,0.00093177,87841.0,87840.0,0.00999999]
[1763954373210,0.00132444,87841.0,87840.0,0.00999999]
[1763954373624,0.00132444,87841.0,87830.0,0.01999998]
[1763954373789,0.323,87839.0,87830.0,0.01999998]
[1763954374196,0.01454,87838.0,87830.0,0.01999998]
[1763954374404,0.00954,87838.0,87830.0,0.01999998]
[1763954375927,0.00954,87838.0,87830.0,0.00999999]
[1763954376135,0.00954,87838.0,87830.0,0.01999998]
[1763954376354,0.04017,87838.0,87830.0,0.01999998]
[1763954376583,0.00954,87838.0,87830.0,0.01999998]
[1763954378229,0.00954,87838.0,87830.0,0.03112235]
[1763954378877,0.00062125,87831.0,87830.0,0.03112235]
[1763954379074,0.00062125,87831.0,87830.0,0.02112236]
[1763954381643,0.05071125,87831.0,87820.0,0.01999998]
[1763954381964,0.01454,87821.0,87820.0,0.00999999]
[1763954382562,0.034,87821.0,87820.0,0.00999999]
[1763954382772,0.06463,87821.0,87820.0,0.00999999]
[1763954382973,0.00954,87838.0,87830.0,0.00999999]
[1763954383173,0.00954,87838.0,87830.0,0.01999998]
[1763954383174,0.02129282,87837.0,87830.0,0.01999998]
[1763954383384,0.00954,87838.0,87830.0,0.01999998]
[1763954383385,0.02129282,87836.0,87830.0,0.01999998]
[1763954383514,0.02129282,87835.0,87830.0,0.01999998]
[1763954383712,0.02129282,87834.0,87830.0,0.00999999]
[1763954383914,0.88482735,87840.0,87830.0,0.00999999]
[1763954384117,0.001,87838.0,87830.0,0.01999998]
[1763954384316,0.02130261,87837.0,87830.0,0.01999998]
[1763954384721,0.01946,87831.0,87822.0,0.09122371]
[1763954385032,0.33754,87839.0,87830.0,0.00999999]
[1763954385260,0.02131521,87838.0,87830.0,0.01999998]
[1763954385474,0.02131521,87837.0,87830.0,0.01999998]
[1763954385671,0.02131521,87836.0,87830.0,0.01999998]
[1763954385904,0.02131521,87835.0,87830.0,0.01999998]
[1763954386137,0.00039267,87841.0,87830.0,0.01999998]
[1763954386138,0.00039267,87841.0,87831.0,0.022771]
[1763954386343,0.00039267,87841.0,87840.0,0.09122371]
[1763954387563,0.00039267,87841.0,87840.0,0.09222371]
[1763954387699,0.00039267,87841.0,87840.0,0.09322371]
[1763954387913,0.00132444,87841.0,87840.0,0.09222371]
[1763954388115,0.23894802,87886.0,87840.0,0.09222371]
[1763954388116,0.88502735,87880.0,87860.0,0.00999999]
[1763954388320,0.323,87869.0,87861.0,0.09122371]
[1763954388544,0.02130393,87868.0,87861.0,0.09122371]
[1763954388761,0.02130393,87867.0,87861.0,0.09122371]
[1763954388966,0.0197,87862.0,87860.0,0.00999999]
[1763954389176,0.0197,87861.0,87850.0,0.00999999]
[1763954389376,0.01436,87851.0,87850.0,0.00999999]
[1763954389637,0.01436,87851.0,87840.0,0.1012237]
[1763954389858,0.323,87859.0,87840.0,0.1012237]
[1763954390094,0.01440903,87869.0,87840.0,0.1012237]
[1763954390095,0.01440903,87869.0,87860.0,0.00999999]
[1763954390287,0.02129078,87868.0,87861.0,0.01012237]
[1763954390485,0.323,87869.0,87861.0,0.01012237]
[1763954390486,0.02129078,87867.0,87861.0,0.01012237]
[1763954390791,0.02129078,87866.0,87861.0,0.01012237]
[1763954391004,0.323,87869.0,87862.0,0.01213461]
[1763954391005,0.02129078,87865.0,87862.0,0.01213461]
[1763954391295,0.00011775,87872.0,87862.0,0.01213461]
[1763954391505,0.02128043,87871.0,87862.0,0.01213461]
[1763954391711,0.02128043,87870.0,87862.0,0.01213461]
[1763954391898,0.02128043,87869.0,87862.0,0.01213461]
[1763954392101,0.00011775,87872.0,87863.0,0.01233583]
[1763954392259,0.02127401,87871.0,87870.0,0.09122371]
[1763954392781,0.02127401,87871.0,87863.0,0.01233583]
[1763954392782,0.001,87871.0,87863.0,0.01233583]
[1763954393000,0.32311775,87872.0,87863.0,0.01233583]
[1763954393335,0.32411775,87872.0,87863.0,0.01233583]
[1763954393537,0.32311775,87872.0,87863.0,0.01233583]
[1763954393919,0.00071404,87864.0,87863.0,0.01233583]
[1763954394732,0.88482735,87873.0,87860.0,0.01999998]
[1763954394926,0.0212603,87872.0,87860.0,0.02011773]
[1763954395154,0.0212603,87871.0,87860.0,0.02011773]
[1763954395435,0.00024831,87872.0,87860.0,0.02011773]
[1763954395881,0.88482735,87870.0,87860.0,0.02011773]
[1763954396055,0.88482735,87870.0,87861.0,0.01113414]
[1763954396464,0.00024831,87872.0,87861.0,0.01113414]
[1763954396739,0.00024831,87872.0,87871.0,0.09122371]
[1763954398534,0.00024831,87872.0,87861.0,0.01113414]
[1763954398737,0.70111063,87871.0,87861.0,0.01113414]
[1763954398947,0.70111063,87871.0,87862.0,0.01297556]
[1763954399788,0.71547063,87871.0,87860.0,0.02011773]
[1763954400004,0.00024831,87872.0,87860.0,0.02011773]
[1763954400005,0.00024831,87872.0,87861.0,0.02276322]
[1763954400207,0.00024831,87872.0,87871.0,0.09122371]
[1763954401774,0.71511052,87881.0,87871.0,0.09122371]
[1763954401775,0.5106331,87881.0,87871.0,0.09122371]
[1763954401975,0.5106331,87881.0,87871.0,0.01185037]
[1763954402177,0.0197,87872.0,87871.0,0.001]
[1763954402384,0.35092,87880.0,87871.0,0.001]
[1763954402592,0.02792,87879.0,87871.0,0.002]
[1763954402793,0.02792,87879.0,87871.0,0.001]
[1763954402999,0.02792,87879.0,87870.0,0.01999998]
[1763954403207,0.01436,87871.0,87870.0,0.01999998]
[1763954403412,0.01436,87871.0,87870.0,0.00999999]
[1763954403615,0.323,87880.0,87870.0,0.01999998]
[1763954403988,0.70211063,87881.0,87870.0,0.01999998]
[1763954404396,0.01445,87883.0,87880.0,0.00999999]
[1763954404589,0.01445,87883.0,87870.0,0.01999998]
[1763954404792,0.01445,87871.0,87860.0,0.02011773]
[1763954404996,0.70111063,87870.0,87861.0,0.01113414]
[1763954405565,0.00024828,87880.0,87861.0,0.01113414]
[1763954405713,0.70135891,87880.0,87870.0,0.01999998]
[1763954406120,0.70135891,87880.0,87870.0,0.00999999]
[1763954406121,0.01445,87871.0,87870.0,0.00999999]
[1763954406332,0.73120891,87880.0,87870.0,0.00999999]
[1763954406496,0.70135891,87880.0,87870.0,0.00999999]
[1763954406698,0.70135891,87880.0,87870.0,0.01999998]
[1763954407534,0.70135891,87880.0,87871.0,0.09122371]
[1763954407745,0.70135891,87880.0,87872.0,0.03388274]
[1763954408357,0.00024828,87880.0,87872.0,0.03388274]
[1763954409018,0.00024828,87880.0,87872.0,0.01112237]
[1763954409219,0.00024828,87880.0,87873.0,0.09122371]
[1763954409446,0.00024828,87880.0,87870.0,0.01999998]
[1763954409599,0.00024828,87880.0,87870.0,0.00999999]
[1763954409798,0.00024828,87880.0,87871.0,0.09122371]
[1763954410237,0.00024828,87880.0,87864.0,0.00728]
[1763954410238,0.01445,87871.0,87864.0,0.00728]
[1763954410957,0.01445,87871.0,87860.0,0.01011774]
[1763954411159,0.01445,87871.0,87862.0,0.01124756]
[1763954412116,0.01445,87871.0,87860.0,0.02011773]
[1763954412117,0.55063228,87861.0,87860.0,0.00011775]
[1763954412327,1.92032878,87861.0,87860.0,0.00011775]
[1763954412538,0.0113829,87851.0,87840.0,0.00999999]
[1763954412759,0.01138381,87844.0,87830.0,0.00999999]
[1763954412963,0.323,87839.0,87830.0,0.00999999]
[1763954413167,0.323,87839.0,87830.0,0.01999998]
[1763954413377,0.02985,87838.0,87830.0,0.01999998]
[1763954413583,0.01849,87831.0,87820.0,0.00999999]
[1763954413956,0.01445,87821.0,87810.0,0.00999999]
[1763954414143,0.01445,87821.0,87811.0,0.01012237]
[1763954414144,0.70111063,87816.0,87811.0,0.01012237]
[1763954414344,0.323,87815.0,87811.0,0.01012237]
[1763954414952,0.01849,87812.0,87810.0,0.00999999]
[1763954415151,0.01849,87811.0,87810.0,0.01039266]
[1763954415357,0.34149,87811.0,87810.0,0.00039267]
[1763954415565,1.928901,87811.0,87810.0,0.00039267]
[1763954415969,0.34149,87811.0,87810.0,0.00039267]
[1763954416179,0.37134,87811.0,87810.0,0.00039267]
[1763954416644,0.04934,87811.0,87810.0,0.00039267]
[1763954417056,0.01949,87811.0,87810.0,0.00039267]
[1763954417260,0.04934,87811.0,87810.0,0.00039267]
[1763954417496,0.05034,87811.0,87810.0,0.00039267]
[1763954418044,0.04934,87811.0,87810.0,0.00039267]
[1763954418306,0.002,87811.0,87810.0,0.00039267]
[1763954419186,0.001,87811.0,87810.0,0.00039267]
[1763954419367,0.001,87811.0,87810.0,0.01183211]
[1763954419772,0.70111063,87820.0,87810.0,0.00039267]
[1763954420158,0.70111063,87820.0,87810.0,0.01039266]
[1763954420483,0.323,87819.0,87810.0,0.02039265]
[1763954420704,0.323,87819.0,87810.0,0.02139265]
[1763954420925,0.323,87819.0,87811.0,0.01126164]
[1763954421105,0.323,87819.0,87810.0,0.02039265]
[1763954421316,0.323,87819.0,87810.0,0.02139265]
[1763954421528,0.35285,87819.0,87810.0,0.02139265]
[1763954421748,0.35285,87819.0,87810.0,0.02039265]
[1763954422814,0.35385,87819.0,87810.0,0.02039265]
[1763954423039,0.35385,87819.0,87810.0,0.01039266]
[1763954423247,0.35385,87819.0,87810.0,0.02039265]
[1763954423454,0.35485,87819.0,87810.0,0.02039265]
[1763954423869,0.325,87819.0,87811.0,0.09122371]
[1763954424110,0.002,87819.0,87812.0,0.03393757]
[1763954424328,0.002,87819.0,87812.0,0.01116164]
[1763954424730,0.323,87829.0,87812.0,0.01116164]
[1763954424937,0.323,87829.0,87820.0,0.01999998]
[1763954425876,0.324,87829.0,87820.0,0.01999998]
[1763954426053,0.001,87829.0,87820.0,0.01999998]
[1763954426470,0.324,87829.0,87820.0,0.01999998]
[1763954426674,0.001,87829.0,87820.0,0.01999998]
[1763954426883,0.324,87829.0,87820.0,0.01999998]
[1763954427502,0.325,87829.0,87820.0,0.01999998]
[1763954427934,0.35485,87829.0,87820.0,0.00999999]
[1763954428165,0.01849,87821.0,87810.0,0.01039266]
[1763954428368,0.01849,87811.0,87810.0,0.01039266]
[1763954428572,0.04834,87811.0,87810.0,0.01039266]
[1763954428991,0.04834,87811.0,87810.0,0.00039267]
[1763954429411,0.323,87815.0,87810.0,0.00039267]
[1763954429609,0.323,87815.0,87810.0,0.01039266]
[1763954430031,0.02985,87814.0,87810.0,0.01039266]
[1763954430173,0.323,87818.0,87810.0,0.01039266]
[1763954430370,0.001,87811.0,87810.0,0.00039267]
[1763954430568,0.323,87818.0,87810.0,0.01039266]
[1763954431226,0.001,87815.0,87810.0,0.01039266]
[1763954431702,0.01849,87811.0,87810.0,0.00039267]
[1763954432259,0.09122371,87817.0,87810.0,0.01039266]
[1763954432454,0.01849,87811.0,87810.0,0.00039267]
[1763954432690,0.33438939,87801.0,87790.0,0.00999999]
[1763954432853,0.01849,87801.0,87800.0,0.00999999]
[1763954433185,0.01445,87800.0,87790.0,0.02011773]
[1763954433548,0.323,87799.0,87791.0,0.09122371]
[1763954433749,0.323,87799.0,87792.0,0.03391525]
[1763954434542,0.323,87809.0,87792.0,0.03391525]
[1763954434777,0.323,87809.0,87800.0,0.00999999]
[1763954436205,0.32186118,87809.0,87800.0,0.00999999]
[1763954436756,0.32286118,87809.0,87800.0,0.00999999]
[1763954439113,0.32286118,87809.0,87800.0,0.01999998]
[1763954439114,0.32186118,87809.0,87800.0,0.01999998]
[1763954439314,0.32286118,87809.0,87800.0,0.01999998]
[1763954439759,0.32186118,87809.0,87800.0,0.01999998]
[1763954439967,0.08627283,87830.0,87792.0,0.03391525]
[1763954439968,0.5,87838.0,87810.0,0.01999998]
[1763954440179,0.01505,87841.0,87830.0,0.00999999]
[1763954440384,0.01505,87841.0,87830.0,0.01999998]
[1763954440385,0.70111063,87840.0,87830.0,0.01999998]
[1763954440602,1.557561,87839.0,87830.0,0.01999998]
[1763954440836,0.04323,87855.0,87833.0,0.09122371]
[1763954441059,0.70111063,87860.0,87850.0,0.00999999]
[1763954441279,0.01573208,87854.0,87840.0,0.01999998]
[1763954441485,0.00039219,87860.0,87850.0,0.00999999]
[1763954441693,0.00039219,87860.0,87850.0,0.01999998]
[1763954441694,0.70150282,87860.0,87850.0,0.01999998]
[1763954441896,0.323,87859.0,87851.0,0.01112237]
[1763954442317,0.70150282,87860.0,87851.0,0.01112237]
[1763954442518,0.323,87859.0,87851.0,0.01112237]
[1763954442721,0.70150282,87860.0,87851.0,0.01112237]
[1763954444003,0.01505,87852.0,87843.0,0.00728]
[1763954444201,0.33805,87852.0,87843.0,0.00728]
[1763954444440,0.33805,87852.0,87847.0,0.09122371]
[1763954444642,0.323,87852.0,87847.0,0.09122371]
[1763954444852,0.323,87852.0,87848.0,0.00985037]
[1763954445669,0.323,87859.0,87850.0,0.00999999]
[1763954445878,0.323,87859.0,87850.0,0.01999998]
[1763954446088,0.00039219,87860.0,87851.0,0.0113829]
[1763954446297,0.00039219,87860.0,87852.0,0.00728]
[1763954446501,0.00039219,87860.0,87853.0,0.01283541]
[1763954447156,0.00039219,87860.0,87854.0,0.00728]
[1763954447768,0.00039219,87860.0,87853.0,0.01283541]
[1763954447976,0.00039219,87860.0,87854.0,0.00728]
[1763954448186,0.00039219,87860.0,87853.0,0.01283541]
[1763954448396,0.00039219,87860.0,87854.0,0.01240591]
[1763954448814,0.00039219,87860.0,87850.0,0.00999999]
[1763954449258,0.00039219,87860.0,87850.0,0.01999998]
[1763954449457,0.323,87859.0,87850.0,0.01999998]
[1763954449898,0.323,87859.0,87850.0,0.00999999]
[1763954450102,0.323,87859.0,87850.0,0.01999998]
[1763954450304,0.323,87859.0,87851.0,0.01112237]
[1763954450568,0.00039219,87860.0,87852.0,0.00728]
[1763954450996,0.00039219,87860.0,87854.0,0.00998]
[1763954451174,0.00039219,87860.0,87852.0,0.00728]
[1763954451375,0.00039219,87860.0,87852.0,0.01866278]
[1763954451581,0.00039219,87860.0,87854.0,0.00998]
[1763954451788,0.00039219,87860.0,87853.0,0.27817838]
[1763954452000,0.00039219,87860.0,87854.0,0.01138252]
[1763954452215,0.00039219,87860.0,87853.0,0.03914382]
[1763954452419,0.00039219,87860.0,87852.0,0.00728]
[1763954453242,0.00039219,87860.0,87851.0,0.01112237]
[1763954453446,0.00039219,87860.0,87853.0,0.00728]
[1763954454750,0.00039219,87860.0,87854.0,0.00728]
[1763954455371,0.00039219,87860.0,87855.0,0.02276478]
[1763954455603,0.00039219,87860.0,87856.0,0.03002076]
[1763954455811,0.00039219,87860.0,87854.0,0.00728]
[1763954456930,0.00039219,87860.0,87855.0,0.02276478]
[1763954457694,0.00039219,87860.0,87854.0,0.00728]
[1763954457954,0.00039219,87860.0,87859.0,0.22763746]
[1763954458211,0.00039219,87860.0,87859.0,0.02276374]
[1763954458439,0.00039219,87860.0,87859.0,0.05066939]
[1763954458683,0.00024828,87880.0,87863.0,0.01138135]
[1763954458911,0.0003659,87880.0,87879.0,0.09122371]
[1763954460350,0.01785454,87927.0,87900.0,0.00999999]
[1763954460564,0.01797222,87927.0,87920.0,0.00999999]
[1763954460769,0.03378975,87927.0,87920.0,0.01999998]
[1763954460972,0.01797222,87927.0,87920.0,0.01999998]
[1763954461533,0.00127175,87921.0,87910.0,0.02999998]
[1763954461748,0.88127363,87960.0,87940.0,0.01999998]
[1763954461959,0.88127363,87950.0,87940.0,0.01999998]
[1763954462183,0.0002,87950.0,87940.0,0.01999998]
[1763954462383,0.88127363,87950.0,87940.0,0.01999998]
[1763954462588,0.0002,87950.0,87940.0,0.01999998]
[1763954462808,0.88127363,87950.0,87940.0,0.01999998]